Workbook

Sheet Диетменю сах.диабет (завтрак)
A1: День/неделя: Понедельник-1
A2: № рец. | B2: Наименование дней недели, блюд | D2: Масса порции | E2: Пищевые вещества (г) | H2: Энергетическая ценность (ккал) | I2: Витамины (мг) | M2: Минеральные вещества (мг)
C3: Цена | E3: Б | F3: Ж | G3: У | I3: В1 | J3: С | K3: А (мкг) | L3: Е | M3: Са | N3: Р | O3: Mg | P3: Fe
A4: _Завтрак
A5: 183 | B5: Каша жидкая молочная из гречневой крупы с маслом | D5: 210 | E5: 9.09 | F5: 11.2 | G5: 35.18 | H5: 269.88 | I5: 0.41 | J5: 1.04 | K5: 0.02 | L5: 0.27 | M5: 133.75 | N5: 229.43 | O5: 107.12 | P5: 3.23
A6: 382 | B6: Какао с молоком без сахара | D6: 200 | E6: 4.08 | F6: 3.54 | G6: 1.58 | H6: 54.52 | I6: 0.06 | J6: 1.59 | K6: 0.02 | M6: 152.22 | N6: 124.56 | O6: 21.34 | P6: 0.48
B7: Хлеб ржано-пшеничный | D7: 40 | E7: 3.24 | F7: 1.36 | G7: 16.88 | H7: 88.8 | I7: 0.04 | J7: 0 | K7: 0 | L7: 0.36 | M7: 9.2 | N7: 42.4 | O7: 10 | P7: 1.24
A8: 15 | B8: Сыр (Российский ) | D8: 50 | E8: 13.92 | F8: 17.7 | G8: 0 | H8: 216 | I8: 0.02 | J8: 0.42 | K8: 0.016 | L8: 0.3 | M8: 528 | N8: 300 | O8: 21 | P8: 0.6
B9: Фрукты в ассортименте | D9: 100 | E9: 1.5 | F9: 0.5 | G9: 21 | H9: 96 | I9: 0.04 | J9: 10 | K9: 0 | L9: 0.4 | M9: 8 | N9: 28 | O9: 42 | P9: 0.6
B12: Итого за _Завтрак | C12: 77.09 | D12: =SUM(D5:D11) -> 600 | E12: 31.830 | F12: 34.300 | G12: 74.640 | H12: 725.200 | I12: 0.570 | J12: 13.050 | K12: 0.056 | L12: 1.330 | M12: 831.170 | N12: 724.390 | O12: 201.460 | P12: 6.150
A14: День/неделя: Вторник-1
A15: _Завтрак
B16: Морковь отварная с р/м | D16: 150 | E16: 1.95 | F16: 5.15 | G16: 10.8 | H16: 97.35 | I16: 0.09 | J16: 7.5 | K16: 0.01 | L16: 0.2 | M16: 76.5 | N16: 82.5 | O16: 57 | P16: 1.05
A17: 274 | B17: Зразы рубленые из говядины | D17: 100 | E17: 9.56 | F17: 12.4 | G17: 12.5 | H17: 199.84 | I17: 0.03 | J17: 0 | K17: 0.105 | L17: 0.24 | M17: 22 | N17: 97.2 | O17: 4.8 | P17: 1
A18: 379 | B18: Кофейный напиток с молоком без сахара | D18: 200 | E18: 3.17 | F18: 2.68 | G18: 1.9 | H18: 44.4 | I18: 0.04 | J18: 1.3 | K18: 0.02 | L18: 0 | M18: 125.78 | N18: 90 | O18: 14 | P18: 0.1
B19: Хлеб ржано-пшеничный | D19: 40 | E19: 3.24 | F19: 1.36 | G19: 16.88 | H19: 88.8 | I19: 0.04 | J19: 0 | K19: 0 | L19: 0.36 | M19: 9.2 | N19: 42.4 | O19: 10 | P19: 1.24
B22: Итого за _Завтрак | C22: 77.09 | D22: =SUM(D16:D21) -> 490 | E22: 17.920 | F22: 21.590 | G22: 42.080 | H22: 430.390 | I22: 0.200 | J22: 8.800 | K22: 0.135 | L22: 0.800 | M22: 233.480 | N22: 312.100 | O22: 85.800 | P22: 3.390
A24: День/неделя: Среда-1
A25: _Завтрак
A26: 223 | B26: Запеканка из творога | D26: 160 | E26: 14.58 | F26: 14 | G26: 23.1 | H26: 296 | I26: 0.08 | J26: 0.62 | K26: 0.086 | L26: 0.5 | M26: 122.42 | N26: 108.22 | O26: 31 | P26: 0.88
A27: 386 | B27: Кефир 3,2% жирности | D27: 125 | E27: 3.63 | F27: 4 | G27: 5 | H27: 73.75 | I27: 0.04 | J27: 0.88 | K27: 0.025 | L27: 0 | M27: 150 | N27: 118.75 | O27: 17.5 | P27: 0.13
A28: 377 | B28: Чай с лимоном | D28: 200 | E28: 0.3 | F28: 0.1 | G28: 15.2 | H28: 59 | I28: 0 | J28: 2.9 | K28: 0 | L28: 0.01 | M28: 7.8 | N28: 5.2 | O28: 9.7 | P28: 0.9
B29: Хлеб ржано-пшеничный | D29: 40 | E29: 3.24 | F29: 1.36 | G29: 16.88 | H29: 88.8 | I29: 0.04 | J29: 0 | K29: 0 | L29: 0.36 | M29: 9.2 | N29: 42.4 | O29: 10 | P29: 1.24
B30: Фрукты в ассортименте | D30: 100 | E30: 0.4 | F30: 0.4 | G30: 9.6 | H30: 47 | I30: 0.03 | J30: 10 | K30: 0 | L30: 0.2 | M30: 16 | N30: 11 | O30: 9 | P30: 2.2
B32: Итого за _Завтрак | C32: 77.09 | D32: =SUM(D26:D31) -> 625 | E32: 22.150 | F32: 19.860 | G32: 69.780 | H32: 564.550 | I32: 0.190 | J32: 14.400 | K32: 0.111 | L32: 1.070 | M32: 305.420 | N32: 285.570 | O32: 77.200 | P32: 5.350
A34: День/неделя: Четверг-1
A35: _Завтрак
A36: 282 | B36: Оладьи из говяжьей печени со сливочным маслом | D36: 80 | E36: 13.59 | F36: 16.41 | G36: 5.56 | H36: 224.23 | I36: 0.8 | J36: 1.41 | K36: 0.44 | L36: 1.21 | M36: 137.62 | N36: 314.52 | O36: 37.93 | P36: 3.8
B37: Морковь отварная с р/м | D37: 150 | E37: 1.95 | F37: 5.15 | G37: 10.8 | H37: 97.35 | I37: 0.09 | J37: 7.5 | K37: 0.01 | L37: 0.2 | M37: 76.5 | N37: 82.5 | O37: 57 | P37: 1.05
A38: 376 | B38: Чай с ксилитом | D38: 200 | E38: 0.07 | F38: 0.02 | G38: 15 | H38: 60.46 | I38: 0 | J38: 0.03 | K38: 0 | L38: 0 | M38: 11.1 | N38: 2.8 | O38: 1.4 | P38: 0.28
B39: Хлеб ржано-пшеничный | D39: 40 | E39: 3.24 | F39: 1.36 | G39: 16.88 | H39: 88.8 | I39: 0.04 | J39: 0 | K39: 0 | L39: 0.36 | M39: 9.2 | N39: 42.4 | O39: 10 | P39: 1.24
B42: Итого за _Завтрак | C42: 77.09 | D42: =SUM(D36:D41) -> 470 | E42: 18.850 | F42: 22.940 | G42: 48.240 | H42: 470.840 | I42: 0.930 | J42: 8.940 | K42: 0.450 | L42: 1.770 | M42: 234.420 | N42: 442.220 | O42: 106.330 | P42: 6.370
A44: День/неделя: Пятница-1
A45: _Завтрак
A46: 316 | B46: Овощи, припущенные (капуста цветная) | D46: 150 | E46: 4.82 | F46: 5.43 | G46: 30.9 | H46: 191.75 | I46: 0.17 | J46: 6.45 | K46: 0.61 | L46: 2.7 | M46: 95.1 | N46: 178.95 | O46: 123.45 | P46: 24.45
A47: 268/330 | B47: Биточки из говядины с соусом сметанным | D47: 80 | E47: 8.27 | F47: 9.02 | G47: 8.79 | H47: 131 | I47: 0.04 | J47: 0.18 | K47: 0.013 | L47: 1.8 | M47: 28.56 | N47: 79.71 | O47: 25.47 | P47: 1.45
A48: 379 | B48: Кофейный напиток с молоком без сахара | D48: 200 | E48: 3.17 | F48: 2.68 | G48: 1.9 | H48: 100.6 | I48: 0.04 | J48: 1.3 | K48: 0.02 | L48: 0 | M48: 125.78 | N48: 90 | O48: 14 | P48: 0.1
B49: Хлеб ржано-пшеничный | D49: 40 | E49: 3.24 | F49: 1.36 | G49: 16.88 | H49: 88.8 | I49: 0.04 | J49: 0 | K49: 0 | L49: 0.36 | M49: 9.2 | N49: 42.4 | O49: 10 | P49: 1.24
B52: Итого за _Завтрак | C52: 77.09 | D52: =SUM(D46:D51) -> 470 | E52: 19.500 | F52: 18.490 | G52: 58.470 | H52: 512.150 | I52: 0.290 | J52: 7.930 | K52: 0.643 | L52: 4.860 | M52: 258.640 | N52: 391.060 | O52: 172.920 | P52: 27.240
A54: День/неделя: Понедельник-2
A55: _Завтрак
A56: 182 | B56: Каша гречневая молочная жидкая | D56: 200 | E56: 7.6 | F56: 7.2 | G56: 30.3 | H56: 216 | I56: 0.2 | J56: 1.3 | K56: 0.04 | L56: 0.3 | M56: 129.8 | N56: 201.9 | O56: 90.3 | P56: 2.7
B57: Хлеб ржано-пшеничный | D57: 40 | E57: 3.24 | F57: 1.36 | G57: 16.88 | H57: 88.8 | I57: 0.04 | J57: 0 | K57: 0 | L57: 0.36 | M57: 9.2 | N57: 42.4 | O57: 10 | P57: 1.24
A58: 15 | B58: Сыр (Российский ) | D58: 50 | E58: 13.92 | F58: 17.7 | G58: 0 | H58: 216 | I58: 0.02 | J58: 0.42 | K58: 0.016 | L58: 0.3 | M58: 528 | N58: 300 | O58: 21 | P58: 0.6
A59: 382 | B59: Какао с молоком без сахара | D59: 200 | E59: 3.28 | F59: 3.54 | G59: 5.25 | H59: 65.46 | I59: 0.06 | J59: 1.6 | K59: 0.024 | L59: 0 | M59: 152.2 | N59: 124.6 | O59: 21.3 | P59: 0.48
B61: Итого за _Завтрак | C61: 77.09 | D61: =SUM(D56:D60) -> 490 | E61: 28.040 | F61: 29.800 | G61: 52.430 | H61: 586.260 | I61: 0.320 | J61: 3.320 | K61: 0.080 | L61: 0.960 | M61: 819.200 | N61: 668.900 | O61: 142.600 | P61: 5.020
A63: День/неделя: Вторник-2
A64: _Завтрак
A65: 223 | B65: Запеканка из творога | D65: 160 | E65: 14.58 | F65: 14 | G65: 23.1 | H65: 296 | I65: 0.08 | J65: 0.62 | K65: 0.086 | L65: 0.5 | M65: 122.42 | N65: 108.22 | O65: 31 | P65: 0.88
A66: 377 | B66: Чай с лимоном | D66: 200 | E66: 0.3 | F66: 0.1 | G66: 15.2 | H66: 59 | I66: 0.004 | J66: 2.9 | K66: 0 | L66: 0.01 | M66: 7.8 | N66: 5.2 | O66: 9.7 | P66: 0.9
B67: Хлеб ржано-пшеничный | D67: 40 | E67: 3.24 | F67: 1.36 | G67: 16.88 | H67: 88.8 | I67: 0.04 | J67: 0 | K67: 0 | L67: 0.36 | M67: 9.2 | N67: 42.4 | O67: 10 | P67: 1.24
B68: Фрукты в ассортименте | D68: 100 | E68: 1.5 | F68: 0.5 | G68: 21 | H68: 96 | I68: 0.04 | J68: 10 | K68: 0 | L68: 0.4 | M68: 8 | N68: 28 | O68: 42 | P68: 0.6
B69: Итого за _Завтрак | C69: 77.09 | D69: =SUM(D65:D68) -> 500 | E69: 19.620 | F69: 15.960 | G69: 76.180 | H69: 539.800 | I69: 0.164 | J69: 13.520 | K69: 0.086 | L69: 1.270 | M69: 147.420 | N69: 183.820 | O69: 92.700 | P69: 3.620
A71: День/неделя: Среда-2
A72: _Завтрак
A73: 227 | B73: Рыба припущенная | D73: 80 | E73: 13.8 | F73: 7.1 | G73: 0.17 | H73: 122.2 | I73: 0.07 | J73: 0.62 | K73: 0.05 | L73: 0.47 | M73: 28.87 | N73: 200.11 | O73: 22.9 | P73: 0.63
A74: 312 | B74: Капуста цветная отварная | D74: 150 | E74: 3.08 | F74: 2.33 | G74: 19.13 | H74: 109.73 | I74: 0.14 | J74: 3.75 | K74: 0.033 | L74: 0.15 | M74: 36.25 | N74: 76.95 | O74: 26.7 | P74: 0.86
A75: 11.11а | B75: Чай с молоком без сахара | D75: 200 | E75: 1.6 | F75: 1.6 | G75: 3.4 | H75: 26 | I75: 0.02 | J75: 3.6 | K75: 0.01 | L75: 0 | M75: 67.8 | N75: 54.7 | O75: 12.2 | P75: 0.9
B77: Хлеб ржано-пшеничный | D77: 40 | E77: 3.24 | F77: 1.36 | G77: 16.88 | H77: 88.8 | I77: 0.04 | J77: 0 | K77: 0 | L77: 0.36 | M77: 9.2 | N77: 42.4 | O77: 10 | P77: 1.24
B79: Итого за _Завтрак | C79: 77.09 | D79: =SUM(D73:D78) -> 470 | E79: 21.720 | F79: 12.390 | G79: 39.580 | H79: 346.730 | I79: 0.270 | J79: 7.970 | K79: 0.093 | L79: 0.980 | M79: 142.120 | N79: 374.160 | O79: 71.800 | P79: 3.630
A81: День/неделя: Четверг-2
A82: _Завтрак
A83: 173 | B83: Каша вязкая молочная из пшенной крупы с маслом | D83: 210 | E83: 90.4 | F83: 13.44 | G83: 40.16 | H83: 318 | I83: 0.39 | J83: 0.96 | K83: 0.0548 | L83: 0.73 | M83: 158.65 | N83: 264.86 | O83: 72.05 | P83: 2.09
A84: 11.11а | B84: Чай с молоком | D84: 200 | E84: 1.6 | F84: 1.6 | G84: 3.4 | H84: 26 | I84: 0.02 | J84: 3.6 | K84: 0.01 | L84: 0 | M84: 67.8 | N84: 54.7 | O84: 12.2 | P84: 0.9
B85: Хлеб ржано-пшеничный | D85: 40 | E85: 3.24 | F85: 1.36 | G85: 16.88 | H85: 88.8 | I85: 0.04 | J85: 0 | K85: 0 | L85: 0.36 | M85: 9.2 | N85: 42.4 | O85: 10 | P85: 1.24
B86: Фрукты в ассортименте | D86: 100 | E86: 1.5 | F86: 0.5 | G86: 21 | H86: 96 | I86: 0.04 | J86: 10 | K86: 0 | L86: 0.4 | M86: 8 | N86: 28 | O86: 42 | P86: 0.6
B90: Итого за _Завтрак | C90: 77.09 | D90: =SUM(D83:D89) -> 550 | E90: 96.740 | F90: 16.900 | G90: 81.440 | H90: 528.800 | I90: 0.490 | J90: 14.560 | K90: 0.065 | L90: 1.490 | M90: 243.650 | N90: 389.960 | O90: 136.250 | P90: 4.830
A92: День/неделя: Пятница-2
A93: _Завтрак
B94: Котлета мясная паровая | D94: 100 | E94: 16.18 | F94: 9.04 | G94: 8.77 | H94: 181.16 | I94: 0.08 | J94: 0 | K94: 0.01 | L94: 0 | M94: 12.02 | N94: 164.26 | O94: 24.45 | P94: 2.51
A95: 24 | B95: Салат из свежих помидоров и огурцов | D95: 60 | E95: 0.57 | F95: 3.6 | G95: 1.8 | H95: 42.36 | I95: 0.02 | J95: 5.66 | K95: 0 | L95: 0.3 | M95: 16.3 | N95: 18.06 | O95: 9.9 | P95: 0.46
A96: 379 | B96: Кофейный напиток с молоком | D96: 200 | E96: 3.97 | F96: 2.18 | G96: 15.9 | H96: 99.1 | I96: 0.04 | J96: 1.3 | K96: 0.02 | L96: 0 | M96: 125.78 | N96: 90 | O96: 14 | P96: 0.1
B97: Хлеб ржано-пшеничный | D97: 40 | E97: 3.24 | F97: 1.36 | G97: 16.88 | H97: 88.8 | I97: 0.04 | J97: 0 | K97: 0 | L97: 0.36 | M97: 9.2 | N97: 42.4 | O97: 10 | P97: 1.24
B98: Фрукты в ассортименте | D98: 100 | E98: 1.5 | F98: 0.5 | G98: 21 | H98: 96 | I98: 0.04 | J98: 10 | K98: 0 | L98: 0.4 | M98: 8 | N98: 28 | O98: 42 | P98: 0.6
B99: Итого за _Завтрак | C99: 77.09 | D99: =SUM(D94:D98) -> 500 | E99: 25.460 | F99: 16.680 | G99: 64.350 | H99: 507.420 | I99: 0.220 | J99: 16.960 | K99: 0.030 | L99: 1.060 | M99: 171.300 | N99: 342.720 | O99: 100.350 | P99: 4.910
B104: Итого | E104: =E99+E90+E79+E69+E61+E52+E42+E32+E22+E12 -> 301.830 | F104: =F99+F90+F79+F69+F61+F52+F42+F32+F22+F12 -> 208.910 | G104: 607.190 | H104: 5212.140 | I104: 3.644 | J104: 109.450 | K104: 1.749 | L104: 15.590 | M104: 3386.820 | N104: 4114.900 | O104: 1187.410 | P104: 70.510
B106: Итого за завтрак | E106: =E99+E90+E79+E69+E61+E52+E42+E32+E22+E12 -> 301.83 | F106: 208.91 | G106: 607.19 | H106: 5,212.14 | I106: 3.64 | J106: 109.45 | K106: 1.75 | L106: 15.59 | M106: 3,386.82 | N106: 4,114.90 | O106: 1,187.41 | P106: 70.51
B107: Среднее значение за завтрак | E107: =E106/10 -> 30.18 | F107: =F106/10 -> 20.89 | G107: 60.72 | H107: 521.21 | I107: 0.36 | J107: 10.95 | K107: 0.17 | L107: =L106/10 -> 1.56 | M107: 338.68 | N107: 411.49 | O107: =O106/10 -> 118.74 | P107: =P106/10 -> 7.05

Sheet Диетменю целиакия (завтрак)
A1: День/неделя: Понедельник-1
A2: № рец. | B2: Наименование дней недели, блюд | D2: Масса порции | E2: Пищевые вещества (г) | H2: Энергетическая ценность (ккал) | I2: Витамины (мг) | M2: Минеральные вещества (мг)
C3: Цена | E3: Б | F3: Ж | G3: У | I3: В1 | J3: С | K3: А (мкг) | L3: Е | M3: Са | N3: Р | O3: Mg | P3: Fe
A4: _Завтрак
A5: 182 | B5: Каша пшенная жидкая молочная | D5: 200 | E5: 7.43 | F5: 4.47 | G5: 36.9 | H5: 258 | I5: 0.21 | J5: 1.17 | K5: 0.028 | L5: 1.8 | M5: 13.6 | N5: 181.37 | O5: 47.6 | P5: 1.24
A6: 382 | B6: Чай с молоком и сахаром | D6: 200 | E6: 1.6 | F6: 1.6 | G6: 17.4 | H6: 86 | I6: 0.02 | J6: 3.6 | K6: 0.01 | L6: 0 | M6: 67.8 | N6: 54.7 | O6: 12.2 | P6: 0.9
B7: Хлеб безглютеновый | D7: 20 | E7: 3.6 | F7: 3.3 | G7: 4.2 | H7: 86.2 | I7: 0.02 | J7: 0 | K7: 0 | L7: 0.01 | M7: 2.73 | N7: 13.08 | O7: 3.94 | P7: 0.1
A8: 14 | B8: Масло сливочное | D8: 10 | E8: 0.08 | F8: 7.25 | G8: 0.13 | H8: 66 | I8: 0 | J8: 0 | K8: 0.04 | L8: 0.11 | M8: 2.4 | N8: 3 | O8: 0 | P8: 0.02
B9: Сыр российский | D9: 30 | E9: 6.96 | F9: 8.85 | G9: 0 | H9: 108 | I9: 0.01 | J9: 0.21 | K9: 0.008 | L9: 0.15 | M9: 264 | N9: 150 | O9: 10.5 | P9: 0.3
B10: Яблоко | D10: 100 | E10: 1.5 | F10: 0.5 | G10: 21 | H10: 96 | I10: 0.04 | J10: 10 | K10: 0 | L10: 0.4 | M10: 8 | N10: 28 | O10: 42 | P10: 0.6
B12: Итого за _Завтрак | C12: 77.09 | D12: =SUM(D5:D11) -> 560 | E12: 21.170 | F12: 25.970 | G12: 79.630 | H12: 700.200 | I12: 0.300 | J12: 14.980 | K12: 0.086 | L12: 2.470 | M12: 358.530 | N12: 430.150 | O12: 116.240 | P12: 3.160
A14: День/неделя: Вторник-1
A15: _Завтрак
A16: 185 | B16: Запеканка рисовая | D16: 160 | E16: 3.46 | F16: 9.9 | G16: 33.7 | H16: 222.86 | I16: 0.2 | J16: 0.02 | K16: 0.041 | L16: 1.22 | M16: 21.97 | N16: 48.14 | O16: 21 | P16: 0.64
A17: 376 | B17: Чай с сахаром | D17: 200 | E17: 0.07 | F17: 0.02 | G17: 15 | H17: 60 | I17: 0 | J17: 0.03 | K17: 0 | L17: 0 | M17: 11.1 | N17: 2.8 | O17: 1.4 | P17: 0.28
B18: Фрукты в ассортименте | D18: 100 | E18: 1.5 | F18: 0.5 | G18: 21 | H18: 96 | I18: 0.04 | J18: 10 | K18: 0 | L18: 0.4 | M18: 8 | N18: 28 | O18: 42 | P18: 0.6
B19: Хлеб безглютеновый | D19: 20 | E19: 3.6 | F19: 3.3 | G19: 4.2 | H19: 86.2 | I19: 0.02 | J19: 0 | K19: 0 | L19: 0.01 | M19: 2.73 | N19: 13.08 | O19: 3.94 | P19: 0.1
B20: Безглютеновое печенье | D20: 50 | E20: 4.5 | F20: 4.1 | G20: 38.8 | H20: 220 | I20: 0.04 | J20: 0 | K20: 0 | L20: 0.04 | M20: 25.05 | N20: 26.1 | O20: 6.88 | P20: 0.1
B22: Итого за _Завтрак | C22: 77.09 | D22: =SUM(D16:D21) -> 530 | E22: 13.130 | F22: 17.820 | G22: 112.700 | H22: 685.060 | I22: 0.300 | J22: 10.050 | K22: 0.041 | L22: 1.670 | M22: 68.850 | N22: 118.120 | O22: 75.220 | P22: 1.720
A24: День/неделя: Среда-1
A25: _Завтрак
A26: 203 | B26: Запеканка творожная | D26: 150 | E26: 3.79 | F26: 13.37 | G26: 16.24 | H26: 215.73 | I26: 0.08 | J26: 4.74 | K26: 0.005 | L26: 0.5 | M26: 116.22 | N26: 134.56 | O26: 40.5 | P26: 1.08
B27: Сметана (т/о) | D27: 10 | E27: 0.28 | F27: 2 | G27: 0.32 | H27: 20.6 | I27: 0.01 | J27: 0.1 | K27: 0.044 | L27: 0.02 | M27: 30.7 | N27: 21.9 | O27: 3.4 | P27: 0.02
A28: 377 | B28: какао с молоком | D28: 200 | E28: 3.28 | F28: 3.54 | G28: 5.52 | H28: 65.46 | I28: 0 | J28: 2.9 | K28: 0 | L28: 0.01 | M28: 7.8 | N28: 5.2 | O28: 9.7 | P28: 0.9
B29: Хлеб безглютеновый | D29: 20 | E29: 3.6 | F29: 3.3 | G29: 4.2 | H29: 86.2 | I29: 0.02 | J29: 0 | K29: 0 | L29: 0.01 | M29: 2.73 | N29: 13.08 | O29: 3.94 | P29: 0.1
A30: 14 | B30: Масло сливочное | D30: 10 | E30: 0.08 | F30: 7.25 | G30: 0.13 | H30: 66 | I30: 0 | J30: 0 | K30: 0.04 | L30: 0.11 | M30: 2.4 | N30: 3 | O30: 0 | P30: 0.02
B31: Яблоко | D31: 100 | E31: 1.5 | F31: 0.5 | G31: 21 | H31: 96 | I31: 0.04 | J31: 10 | K31: 0 | L31: 0.4 | M31: 8 | N31: 28 | O31: 42 | P31: 0.6
B32: Итого за _Завтрак | C32: 77.09 | D32: =SUM(D26:D31) -> 490 | E32: 12.530 | F32: 29.960 | G32: 47.410 | H32: 549.990 | I32: 0.150 | J32: 17.740 | K32: 0.089 | L32: 1.050 | M32: 167.850 | N32: 205.740 | O32: 99.540 | P32: 2.720
A34: День/неделя: Четверг-1
A35: _Завтрак
A36: 210 | B36: Омлет натуральный | D36: 150 | E36: 12.93 | F36: 19.06 | G36: 2.94 | H36: 289.6 | I36: 0.15 | J36: 0.26 | K36: 0.3 | L36: 0.75 | M36: 103.08 | N36: 225.75 | O36: 16.18 | P36: 0.75
A37: 604 | B37: Икра из свежих кабачков | D37: 60 | E37: 0.6 | F37: 4.2 | G37: 5.1 | H37: 60.6 | I37: 0.02 | J37: 8.4 | K37: 0 | L37: 0 | M37: 24.6 | N37: 22.2 | O37: 9 | P37: 0.42
A38: 376 | B38: Чай с сахаром | D38: 200 | E38: 0.07 | F38: 0.02 | G38: 15 | H38: 60 | I38: 0 | J38: 0.03 | K38: 0 | L38: 0 | M38: 11.1 | N38: 2.8 | O38: 1.4 | P38: 0.28
B39: Хлеб безглютеновый | D39: 20 | E39: 3.6 | F39: 3.3 | G39: 4.2 | H39: 86.2 | I39: 0.02 | J39: 0 | K39: 0 | L39: 0.01 | M39: 2.73 | N39: 13.08 | O39: 3.94 | P39: 0.1
B42: Итого за _Завтрак | C42: 77.09 | D42: =SUM(D36:D41) -> 430 | E42: 17.200 | F42: 26.580 | G42: 27.240 | H42: 496.400 | I42: 0.190 | J42: 8.690 | K42: 0.300 | L42: 0.760 | M42: 141.510 | N42: 263.830 | O42: 30.520 | P42: 1.550
A44: День/неделя: Пятница-1
A45: _Завтрак
B46: Морковь отварная с р/м | D46: 150 | E46: 1.95 | F46: 5.15 | G46: 10.8 | H46: 97.35 | I46: 0.09 | J46: 7.5 | K46: 0.01 | L46: 0.2 | M46: 76.5 | N46: 82.5 | O46: 57 | P46: 1.05
A47: 268/330 | B47: Биточки из говядины с соусом сметанным | D47: 80 | E47: 8.27 | F47: 9.02 | G47: 8.79 | H47: 131 | I47: 0.04 | J47: 0.18 | K47: 0.013 | L47: 1.8 | M47: 28.56 | N47: 79.71 | O47: 25.47 | P47: 1.45
A48: 302 | B48: Каша гречневая рассыпчатая | D48: 150 | E48: 4.7 | F48: 4.1 | G48: 30.88 | H48: 182.55 | I48: 0.2 | J48: 0 | K48: 0 | L48: 0 | M48: 39.2 | N48: 210 | O48: 14 | P48: 5.01
A49: 382 | B49: Чай с молоком и сахаром | D49: 200 | E49: 1.6 | F49: 1.6 | G49: 17.4 | H49: 86 | I49: 0.02 | J49: 3.6 | K49: 0.01 | L49: 0 | M49: 67.8 | N49: 54.7 | O49: 12.2 | P49: 0.9
B50: Яблоко | D50: 100 | E50: 1.5 | F50: 0.5 | G50: 21 | H50: 96 | I50: 0.04 | J50: 10 | K50: 0 | L50: 0.4 | M50: 8 | N50: 28 | O50: 42 | P50: 0.6
B51: Булочка безглютеновая | D51: 50 | E51: 2.95 | F51: 3.8 | G51: 29 | H51: 161.9 | I51: 0.06 | J51: 0.08 | K51: 0.09 | L51: 0.55 | M51: 24.63 | N51: 46.18 | O51: 7.02 | P51: 0.5
B52: Хлеб безглютеновый | D52: 20 | E52: 3.6 | F52: 3.3 | G52: 4.2 | H52: 86.2 | I52: 0.02 | J52: 0 | K52: 0 | L52: 0.01 | M52: 2.73 | N52: 13.08 | O52: 3.94 | P52: 0.1
B53: Итого за _Завтрак | C53: 77.09 | D53: =SUM(D46:D52) -> 750 | E53: =SUM(E46:E52) -> 24.570 | F53: 27.470 | G53: 122.070 | H53: 841.000 | I53: 0.470 | J53: 21.360 | K53: 0.123 | L53: 2.960 | M53: 247.420 | N53: 514.170 | O53: 161.630 | P53: 9.610
A55: День/неделя: Понедельник-2
A56: _Завтрак
A57: 182 | B57: Каша гречневая жидкая молочная, с маслом и сахаром | D57: 200 | E57: 5.1 | F57: 10.12 | G57: 43.4 | H57: 291 | I57: 0.06 | J57: 1.17 | K57: 0.058 | L57: 0.21 | M57: 130.39 | N57: 138.14 | O57: 22.12 | P57: 0.5
B58: Хлеб безглютеновый | D58: 20 | E58: 3.6 | F58: 3.3 | G58: 4.2 | H58: 86.2 | I58: 0.02 | J58: 0 | K58: 0 | L58: 0.01 | M58: 2.73 | N58: 13.08 | O58: 3.94 | P58: 0.1
A59: 15 | B59: Сыр (Российский ) | D59: 15 | E59: 3.48 | F59: 4.43 | G59: 0 | H59: 54 | I59: 0.005 | J59: 0.1 | K59: 0.03 | L59: 0.08 | M59: 132 | N59: 75 | O59: 5.25 | P59: 0.15
A60: 377 | B60: Чай с сахаром и лимоном | D60: 200 | E60: 0.3 | F60: 0.1 | G60: 15.2 | H60: 59 | I60: 0 | J60: 2.9 | K60: 0 | L60: 0.01 | M60: 7.8 | N60: 5.2 | O60: 9.7 | P60: 0.9
B62: Итого за _Завтрак | C62: 77.09 | D62: =SUM(D57:D61) -> 435 | E62: 12.480 | F62: 17.950 | G62: 62.800 | H62: 490.200 | I62: 0.085 | J62: 4.170 | K62: 0.088 | L62: 0.310 | M62: 272.920 | N62: 231.420 | O62: 41.010 | P62: 1.650
A64: День/неделя: Вторник-2
A65: _Завтрак
B66: Сырники со сметаной | D66: 180 | E66: 28.31 | F66: 22.5 | G66: 27.43 | H66: 428.21 | I66: 0.08 | J66: 4.74 | K66: 0.005 | L66: 0.5 | M66: 116.22 | N66: 134.56 | O66: 40.5 | P66: 1.08
A67: 376 | B67: Чай с сахаром | D67: 200 | E67: 0.07 | F67: 0.02 | G67: 15 | H67: 60 | I67: 0 | J67: 0.03 | K67: 0 | L67: 0 | M67: 11.1 | N67: 2.8 | O67: 1.4 | P67: 0.28
B68: Хлеб безглютеновый | D68: 20 | E68: 3.6 | F68: 3.3 | G68: 4.2 | H68: 86.2 | I68: 0.02 | J68: 0 | K68: 0 | L68: 0.01 | M68: 2.73 | N68: 13.08 | O68: 3.94 | P68: 0.1
A69: 14 | B69: Масло сливочное | D69: 10 | E69: 0.08 | F69: 7.25 | G69: 0.13 | H69: 66 | I69: 0 | J69: 0 | K69: 0.04 | L69: 0.11 | M69: 2.4 | N69: 3 | O69: 0 | P69: 0.02
B70: Фрукты в ассортименте | D70: 100 | E70: 0.400 | F70: 0.400 | G70: 9.600 | H70: 47.000 | I70: 0.030 | J70: 10.000 | K70: 0 | L70: 0.200 | M70: 16.000 | N70: 11.000 | O70: 9.000 | P70: 2.200
B72: Итого за _Завтрак | C72: 77.09 | D72: =SUM(D66:D71) -> 510 | E72: 32.460 | F72: 33.470 | G72: 56.360 | H72: 687.410 | I72: 0.130 | J72: 14.770 | K72: 0.045 | L72: 0.820 | M72: 148.450 | N72: 164.440 | O72: 54.840 | P72: 3.680
A75: День/неделя: Среда-2
A76: _Завтрак
A77: 227 | B77: Рыба припущенная | D77: 80 | E77: 13.8 | F77: 7.1 | G77: 0.17 | H77: 122.2 | I77: 0.07 | J77: 0.62 | K77: 0.05 | L77: 0.47 | M77: 28.87 | N77: 151.11 | O77: 22.9 | P77: 0.63
A78: 312 | B78: Пюре картофельное | D78: 150 | E78: 3.08 | F78: 2.33 | G78: 19.13 | H78: 109.73 | I78: 0.14 | J78: 3.75 | K78: 0.033 | L78: 0.15 | M78: 36.25 | N78: 76.95 | O78: 26.7 | P78: 0.86
B79: Какао с молоком | D79: 200 | E79: 4.08 | F79: 3.54 | G79: 1.58 | H79: 54.52 | I79: 0.06 | J79: 1.59 | K79: 0.02 | M79: 152.22 | N79: 124.56 | O79: 21.34 | P79: 0.48
B80: Хлеб безглютеновый | D80: 20 | E80: 3.6 | F80: 3.3 | G80: 4.2 | H80: 86.2 | I80: 0.02 | J80: 0 | K80: 0 | L80: 0.01 | M80: 2.73 | N80: 13.08 | O80: 3.94 | P80: 0.1
A81: 14 | B81: Масло сливочное | D81: 10 | E81: 0.08 | F81: 7.25 | G81: 0.13 | H81: 66 | I81: 0 | J81: 0 | K81: 0.04 | L81: 0.11 | M81: 2.4 | N81: 3 | O81: 0 | P81: 0.02
B82: Фрукты в ассортименте | D82: 100 | E82: 0.400 | F82: 0.400 | G82: 9.600 | H82: 47.000 | I82: 0.030 | J82: 10.000 | K82: 0 | L82: 0.200 | M82: 16.000 | N82: 11.000 | O82: 9.000 | P82: 2.200
B83: Итого за _Завтрак | C83: 77.09 | D83: =SUM(D77:D82) -> 560 | E83: 25.040 | F83: 23.920 | G83: 34.810 | H83: 485.650 | I83: 0.320 | J83: 15.960 | K83: 0.143 | L83: 0.940 | M83: 238.470 | N83: 379.700 | O83: 83.880 | P83: 4.290
A85: День/неделя: Четверг-2
A86: _Завтрак
A87: 211 | B87: Омлет с сыром запеченный | D87: 150 | E87: 15 | F87: 18 | G87: 3.7 | H87: 237 | I87: 0.09 | J87: 3.9 | K87: 0.24 | L87: 0.3 | M87: 248.6 | N87: 300.3 | O87: 21.8 | P87: 3
A88: 377 | B88: Чай с сахаром и лимоном | D88: 200 | E88: 0.3 | F88: 0.1 | G88: 15.2 | H88: 59 | I88: 0 | J88: 2.9 | K88: 0 | L88: 0.01 | M88: 7.8 | N88: 5.2 | O88: 9.7 | P88: 0.9
B89: Хлеб безглютеновый | D89: 20 | E89: 3.6 | F89: 3.3 | G89: 4.2 | H89: 86.2 | I89: 0.02 | J89: 0 | K89: 0 | L89: 0.01 | M89: 2.73 | N89: 13.08 | O89: 3.94 | P89: 0.1
A90: 14 | B90: Масло сливочное | D90: 7 | E90: 0.06 | F90: 5.08 | G90: 0.09 | H90: 46.2 | I90: 0 | J90: 0 | K90: 0.028 | L90: 0.11 | M90: 2.4 | N90: 3 | O90: 0 | P90: 0.02
B91: Фрукты в ассортименте | D91: 100 | E91: 0.400 | F91: 0.400 | G91: 9.600 | H91: 47.000 | I91: 0.030 | J91: 10.000 | K91: 0 | L91: 0.200 | M91: 16.000 | N91: 11.000 | O91: 9.000 | P91: 2.200
B94: Итого за _Завтрак | C94: 77.09 | D94: =SUM(D87:D93) -> 477 | E94: 19.360 | F94: 26.880 | G94: 32.790 | H94: 475.400 | I94: 0.140 | J94: 16.800 | K94: 0.268 | L94: 0.630 | M94: 277.530 | N94: 332.580 | O94: 44.440 | P94: 6.220
A96: День/неделя: Пятница-2
A97: _Завтрак
A98: 189 | B98: Запеканка рисовая с тыквой | D98: 180 | E98: 4.7 | F98: 8.7 | G98: 39.26 | H98: 282.9 | I98: 0.4 | J98: 2.8 | K98: 0.05 | L98: 1.5 | M98: 33.4 | N98: 91.1 | O98: 30.56 | P98: 0.93
B99: Какао с молоком | D99: 200 | E99: 4.08 | F99: 3.54 | G99: 1.58 | H99: 54.52 | I99: 0.06 | J99: 1.59 | K99: 0.02 | M99: 152.22 | N99: 124.56 | O99: 21.34 | P99: 0.48
B100: Хлеб безглютеновый | D100: 20 | E100: 3.6 | F100: 3.3 | G100: 4.2 | H100: 86.2 | I100: 0 | J100: 0 | K100: 0 | L100: 0 | M100: 0 | N100: 0 | O100: 0 | P100: 0
B102: Фрукты в ассортименте | D102: 100 | E102: 0.400 | F102: 0.400 | G102: 9.600 | H102: 47.000 | I102: 0.030 | J102: 10.000 | K102: 0 | L102: 0.200 | M102: 16.000 | N102: 11.000 | O102: 9.000 | P102: 2.200
B103: Итого за _Завтрак | C103: 77.09 | D103: =SUM(D98:D102) -> 500 | E103: 12.780 | F103: 15.940 | G103: 54.640 | H103: 470.620 | I103: 0.490 | J103: 14.390 | K103: 0.070 | L103: 1.700 | M103: 201.620 | N103: 226.660 | O103: 60.900 | P103: 3.610
B106: Итого | E106: =E103+E94+E83+E72+E62+E53+E42+E32+E22+E12 -> 190.720 | F106: =F103+F94+F83+F72+F62+F53+F42+F32+F22+F12 -> 245.960 | G106: 630.450 | H106: 5881.930 | I106: 2.575 | J106: 138.910 | K106: 1.253 | L106: 13.310 | M106: 2123.150 | N106: 2866.810 | O106: 768.220 | P106: 38.210
B108: Итого за завтрак | E108: =E103+E94+E83+E72+E62+E53+E42+E32+E22+E12 -> 190.72 | F108: 245.96 | G108: 630.45 | H108: 5,881.93 | I108: 2.58 | J108: 138.91 | K108: 1.25 | L108: 13.31 | M108: 2,123.15 | N108: 2,866.81 | O108: 768.22 | P108: 38.21
B109: Среднее значение за завтрак | E109: =E108/10 -> 19.07 | F109: =F108/10 -> 24.60 | G109: 63.05 | H109: 588.19 | I109: 0.26 | J109: 13.89 | K109: 0.13 | L109: =L108/10 -> 1.33 | M109: 212.32 | N109: 286.68 | O109: =O108/10 -> 76.82 | P109: =P108/10 -> 3.82

Sheet Диетменю фенилкетонурия (завтр)
A1: День/неделя: Понедельник-1
A2: № рец. | B2: Наименование дней недели, блюд | D2: Масса порции | E2: Пищевые вещества (г) | H2: Энергетическая ценность (ккал) | I2: Витамины (мг) | M2: Минеральные вещества (мг)
C3: Цена | E3: Б | F3: Ж | G3: У | I3: В1 | J3: С | K3: А (мкг) | L3: Е | M3: Са | N3: Р | O3: Mg | P3: Fe
A4: _Завтрак
A5: 178 | B5: Каша вязкая из рисовой крупы с маслом (на воде) | D5: 200 | E5: 4.8 | F5: 11 | G5: 33.8 | H5: 253.8 | I5: 1.5 | J5: 0.34 | K5: 0.05 | L5: 0.3 | M5: 27.34 | N5: 124 | O5: 44.6 | P5: 1.4
A6: 382 | B6: Какао на низкобелковом молоке | D6: 200 | E6: 1.96 | F6: 6.8 | G6: 40 | H6: 168.75 | I6: 0.1 | M6: 6.48 | N6: 17.34 | O6: 4.99 | P6: 1.410
B7: Хлеб низкобелковый | D7: 20 | E7: 1.1 | F7: 0.2 | G7: 9.88 | H7: 45.72 | I7: 0.02 | J7: 0 | K7: 0 | L7: 0.26 | M7: 4.6 | N7: 17.4 | O7: 6.6 | P7: 0.220
A8: 14 | B8: Масло сливочное | D8: 10 | E8: 0.08 | F8: 7.25 | G8: 0.13 | H8: 66 | I8: 0 | J8: 0 | K8: 0.04 | L8: 0.11 | M8: 2.4 | N8: 3 | O8: 0 | P8: 0.020
B9: Сыр безбелковый | D9: 15 | E9: 0 | F9: 3.45 | G9: 3 | H9: 43.05 | I9: 0.005 | J9: 0 | K9: 0 | L9: 0 | M9: 0 | N9: 0 | O9: 0 | P9: 0.000
B10: Фрукты в ассортименте | D10: 100 | E10: 1.5 | F10: 0.5 | G10: 21 | H10: 96 | I10: 0.04 | J10: 10 | K10: 0 | L10: 0.4 | M10: 8 | N10: 28 | O10: 42 | P10: 0.600
B12: Итого за _Завтрак | C12: 77.09 | D12: =SUM(D5:D11) -> 545 | E12: 9.440 | F12: 29.200 | G12: 107.810 | H12: 673.320 | I12: 1.665 | J12: 10.340 | K12: 0.090 | L12: 1.070 | M12: 48.820 | N12: 189.740 | O12: 98.190 | P12: =SUM(P6:P11) -> 2.250
A14: День/неделя: Вторник-1
A15: _Завтрак
B16: Плов с фруктами | D16: 240 | E16: 5.91 | F16: 10.54 | G16: 55 | H16: 338.5 | I16: 0.09 | J16: 11.35 | K16: 0 | L16: 0 | M16: 22.5 | N16: 15.4 | O16: 12 | P16: 3.05
B17: Кофейный напиток с молоком безбелковым | D17: 200 | E17: 0 | F17: 0 | G17: 15 | H17: 60 | I17: 0 | J17: 0 | K17: 0 | L17: 0 | M17: 0.9 | N17: 0.1 | O17: 0.5 | P17: 0.3
B18: Хлеб низкобелковый | D18: 20 | E18: 1.1 | F18: 0.2 | G18: 9.88 | H18: 45.72 | I18: 0.02 | J18: 0 | K18: 0 | L18: 0.26 | M18: 4.6 | N18: 17.4 | O18: 6.6 | P18: 0.22
B19: Печенье безбелковое (в ассортименте) | D19: 50 | E19: 0.5 | F19: 7 | G19: 33.5 | H19: 198.5 | I19: 0 | J19: 0 | K19: 0 | L19: 0 | M19: 0 | N19: 0 | O19: 0 | P19: 0
A20: 14 | B20: Масло сливочное | D20: 10 | E20: 0.08 | F20: 7.25 | G20: 0.13 | H20: 66 | I20: 0 | J20: 0 | K20: 0.04 | L20: 0.11 | M20: 2.4 | N20: 3 | O20: 0 | P20: 0.02
B22: Итого за _Завтрак | C22: 77.09 | D22: =SUM(D16:D21) -> 520 | E22: 7.590 | F22: 24.990 | G22: 113.510 | H22: 708.720 | I22: 0.110 | J22: 11.350 | K22: 0.040 | L22: 0.370 | M22: 30.400 | N22: 35.900 | O22: 19.100 | P22: 3.590
A24: День/неделя: Среда-1
A25: _Завтрак
A26: 191 | B26: Котлеты из риса с повидлом | D26: 170 | E26: 5.03 | F26: 7.4 | G26: 47.6 | H26: 318.8 | I26: 0.08 | J26: 0.62 | K26: - | L26: - | M26: 23.88 | N26: 30.29 | O26: 82.11 | P26: 1.19
A27: 377 | B27: Чай с сахаром и лимоном | D27: 200 | E27: 0.3 | F27: 0.1 | G27: 15.2 | H27: 59 | I27: 0 | J27: 2.9 | K27: 0 | L27: 0.01 | M27: 7.8 | N27: 5.2 | O27: 9.7 | P27: 0.9
B28: Хлеб низкобелковый | D28: 20 | E28: 1.1 | F28: 0.2 | G28: 9.88 | H28: 45.72 | I28: 0.02 | J28: 0 | K28: 0 | L28: 0.26 | M28: 4.6 | N28: 17.4 | O28: 6.6 | P28: 0.22
A29: 14 | B29: Масло сливочное | D29: 10 | E29: 0.08 | F29: 7.25 | G29: 0.13 | H29: 66 | I29: 0 | J29: 0 | K29: 0.04 | L29: 0.11 | M29: 2.4 | N29: 3 | O29: 0 | P29: 0.02
B30: Фрукты в ассортименте | D30: 100 | E30: 1.5 | F30: 0.5 | G30: 21 | H30: 96 | I30: 0.04 | J30: 10 | K30: 0 | L30: 0.4 | M30: 8 | N30: 28 | O30: 42 | P30: 0.6
B32: Итого за _Завтрак | C32: 77.09 | D32: =SUM(D26:D31) -> 500 | E32: 8.010 | F32: 15.450 | G32: 93.810 | H32: 585.520 | I32: 0.140 | J32: 13.520 | K32: 0.040 | L32: 0.780 | M32: 46.680 | N32: 83.890 | O32: 140.410 | P32: 2.930
A34: День/неделя: Четверг-1
A35: _Завтрак
A36: 191 | B36: Биточки пшенные | D36: 180 | E36: 5.4 | F36: 9.4 | G36: 31.7 | H36: 233.5 | I36: 0.176 | J36: 0.07 | K36: 9.2 | L36: 0.47 | M36: 23.36 | N36: 126.9 | O36: 49.72 | P36: 1.51
A37: 306 | B37: Бобовые отварные (зеленый горошек консервированный/кукуруза консервированная) | D37: 80 | E37: 4.31 | F37: 2.18 | G37: 4.64 | H37: 47.3 | I37: 0.04 | J37: 7.68 | K37: 0.011 | L37: 1.8 | M37: 19.14 | N37: 48.96 | O37: 16.13 | P37: 0.64
A38: 376 | B38: Чай с сахаром | D38: 200 | E38: 0.07 | F38: 0.02 | G38: 15 | H38: 60 | I38: 0 | J38: 0.03 | K38: 0 | L38: 0 | M38: 11.1 | N38: 2.8 | O38: 1.4 | P38: 0.28
B39: Хлеб низкобелковый | D39: 20 | E39: 1.1 | F39: 0.2 | G39: 9.88 | H39: 45.72 | I39: 0.02 | J39: 0 | K39: 0 | L39: 0.26 | M39: 4.6 | N39: 17.4 | O39: 6.6 | P39: 0.22
B40: Фрукты в ассортименте | D40: 100 | E40: 1.5 | F40: 0.5 | G40: 21 | H40: 96 | I40: 0.04 | J40: 10 | K40: 0 | L40: 0.4 | M40: 8 | N40: 28 | O40: 42 | P40: 0.6
A41: 14 | B41: Масло сливочное | D41: 10 | E41: 0.08 | F41: 7.25 | G41: 0.13 | H41: 66 | I41: 0 | J41: 0 | K41: 0.04 | L41: 0.11 | M41: 2.4 | N41: 3 | O41: 0 | P41: 0.02
B42: Итого за _Завтрак | C42: 77.09 | D42: =SUM(D36:D41) -> 590 | E42: 12.460 | F42: 19.550 | G42: 82.350 | H42: 548.520 | I42: 0.276 | J42: 17.780 | K42: 9.251 | L42: 3.040 | M42: 68.600 | N42: 227.060 | O42: 115.850 | P42: 3.270
A44: День/неделя: Пятница-1
A45: _Завтрак
A46: 176М | B46: Каша вязкая пшенная с тыквой на воде с сахаром | D46: 200 | E46: 5.42 | F46: 10.15 | G46: 34.62 | H46: 248 | I46: 0.288 | J46: 0.96 | K46: 0.8 | L46: 0.326 | M46: 25.6 | N46: 129.4 | O46: 46.68 | P46: 1.51
A47: 382 | B47: Какао на низкобелковом молоке | D47: 200 | E47: 1.96 | F47: 6.8 | G47: 40 | H47: 168.75 | I47: 0.1 | M47: 6.48 | N47: 17.34 | O47: 4.99 | P47: 1.41
B48: Печенье безбелковое (в ассортименте) | D48: 50 | E48: 0.5 | F48: 7 | G48: 33.5 | H48: 198.5 | I48: 0 | J48: 0 | K48: 0 | L48: 0 | M48: 0 | N48: 0 | O48: 0 | P48: 0
B49: Хлеб низкобелковый | D49: 20 | E49: 1.1 | F49: 0.2 | G49: 9.88 | H49: 45.72 | I49: 0.02 | J49: 0 | K49: 0 | L49: 0.26 | M49: 4.6 | N49: 17.4 | O49: 6.6 | P49: 0.22
B50: Фрукты в ассортименте | D50: 100 | E50: 1.5 | F50: 0.5 | G50: 21 | H50: 96 | I50: 0.04 | J50: 10 | K50: 0 | L50: 0.4 | M50: 8 | N50: 28 | O50: 42 | P50: 0.6
A51: 14 | B51: Масло сливочное | D51: 10 | E51: 0.08 | F51: 7.25 | G51: 0.13 | H51: 66 | I51: 0 | J51: 0 | K51: 0.04 | L51: 0.11 | M51: 2.4 | N51: 3 | O51: 0 | P51: 0.02
B52: Итого за _Завтрак | C52: 77.09 | D52: =SUM(D46:D51) -> 580 | E52: 10.560 | F52: 31.900 | G52: 139.130 | H52: 822.970 | I52: 0.448 | J52: 10.960 | K52: 0.840 | L52: 1.096 | M52: 47.080 | N52: 195.140 | O52: 100.270 | P52: 3.760
A54: День/неделя: Понедельник-2
A55: _Завтрак
A56: 201 | B56: Омлет белковый паровой | D56: 100 | E56: 7.9 | F56: 7.56 | G56: 3.16 | H56: 112.28 | I56: 0.06 | J56: 0.78 | K56: 0.13 | M56: 98.95 | N56: 148.08 | O56: 14.28 | P56: 1.26
B57: Хлеб низкобелковый | D57: 20 | E57: 1.1 | F57: 0.2 | G57: 9.88 | H57: 45.72 | I57: 0.02 | J57: 0 | K57: 0 | L57: 0.26 | M57: 4.6 | N57: 17.4 | O57: 6.6 | P57: 0.22
B58: Сыр безбелковый | D58: 30 | E58: 6.9 | F58: 8.7 | H58: 105.9 | I58: 0.01 | J58: 0.48 | K58: 0.08 | L58: 0 | M58: 30 | N58: 162 | O58: 15 | P58: 0.33
B59: Кофейный напиток с молоком безбелковым | D59: 200 | E59: 0 | F59: 0 | G59: 15 | H59: 60 | I59: 0 | J59: 0 | K59: 0 | L59: 0 | M59: 0.9 | N59: 0.1 | O59: 0.5 | P59: 0.3
A60: 14 | B60: Масло сливочное | D60: 10 | E60: 0.08 | F60: 7.25 | G60: 0.13 | H60: 66 | I60: 0 | J60: 0 | K60: 0.04 | L60: 0.11 | M60: 2.4 | N60: 3 | O60: 0 | P60: 0.02
B61: Фрукты в ассортименте | D61: 100 | E61: 1.5 | F61: 0.5 | G61: 21 | H61: 96 | I61: 0.04 | J61: 10 | K61: 0 | L61: 0.4 | M61: 8 | N61: 28 | O61: 42 | P61: 0.6
B62: Итого за _Завтрак | C62: 77.09 | D62: =SUM(D56:D61) -> 460 | E62: 17.480 | F62: 24.210 | G62: 49.170 | H62: 485.900 | I62: 0.130 | J62: 11.260 | K62: 0.250 | L62: 0.770 | M62: 144.850 | N62: 358.580 | O62: 78.380 | P62: 2.730
A64: День/неделя: Вторник-2
A65: _Завтрак
A66: 178 | B66: Каша вязкая из пшенной крупы с маслом на воде | D66: 200 | E66: 4.8 | F66: 11 | G66: 33.8 | H66: 253.8 | I66: 1.5 | J66: 0.34 | K66: 0.05 | L66: 0.3 | M66: 27.34 | N66: 124 | O66: 44.6 | P66: 1.4
A67: 377 | B67: Чай с сахаром и лимоном | D67: 200 | E67: 0.3 | F67: 0.1 | G67: 15.2 | H67: 59 | I67: 0.004 | J67: 2.9 | K67: 0 | L67: 0.01 | M67: 7.8 | N67: 5.2 | O67: 9.7 | P67: 0.9
B68: Хлеб низкобелковый | D68: 20 | E68: 1.1 | F68: 0.2 | G68: 9.88 | H68: 45.72 | I68: 0.02 | J68: 0 | K68: 0 | L68: 0.26 | M68: 4.6 | N68: 17.4 | O68: 6.6 | P68: 0.22
A69: 14 | B69: Масло сливочное | D69: 10 | E69: 0.08 | F69: 7.25 | G69: 0.13 | H69: 66 | I69: 0 | J69: 0 | K69: 0.04 | L69: 0.11 | M69: 2.4 | N69: 3 | O69: 0 | P69: 0.02
B70: Фрукты в ассортименте | D70: 100 | E70: 1.5 | F70: 0.5 | G70: 21 | H70: 96 | I70: 0.04 | J70: 10 | K70: 0 | L70: 0.4 | M70: 8 | N70: 28 | O70: 42 | P70: 0.6
B72: Итого за _Завтрак | C72: 77.09 | D72: =SUM(D66:D71) -> 530 | E72: 7.780 | F72: 19.050 | G72: 80.010 | H72: 520.520 | I72: 1.564 | J72: 13.240 | K72: 0.090 | L72: 1.080 | M72: 50.140 | N72: 177.600 | O72: 102.900 | P72: 3.140
A74: День/неделя: Среда-2
A75: _Завтрак
A76: 185 | B76: Запеканка из пшена с маслом | D76: 200 | E76: 7.24 | F76: 14.22 | G76: 44.78 | H76: 336 | I76: 0.14 | J76: 0.02 | K76: 0.01 | L76: 1.58 | M76: 39 | N76: 140.5 | O76: 47.3 | P76: 1.76
A77: 378 | B77: Чай с молоком и сахаром | D77: 200 | E77: 1.52 | F77: 1.35 | G77: 15.9 | H77: 81 | I77: 0.04 | J77: 1.33 | K77: 0.001 | L77: 0 | M77: 126.6 | N77: 92.8 | O77: 15.4 | P77: 0.41
B78: Хлеб низкобелковый | D78: 20 | E78: 1.1 | F78: 0.2 | G78: 9.88 | H78: 45.72 | I78: 0.02 | J78: 0 | K78: 0 | L78: 0.26 | M78: 4.6 | N78: 17.4 | O78: 6.6 | P78: 0.22
A79: 14 | B79: Масло сливочное | D79: 10 | E79: 0.08 | F79: 7.25 | G79: 0.13 | H79: 66 | I79: 0 | J79: 0 | K79: 0.04 | L79: 0.11 | M79: 2.4 | N79: 3 | O79: 0 | P79: 0.02
B82: Итого за _Завтрак | C82: 77.09 | D82: =SUM(D76:D81) -> 430 | E82: 9.940 | F82: 23.020 | G82: 70.690 | H82: 528.720 | I82: 0.200 | J82: 1.350 | K82: 0.051 | L82: 1.950 | M82: 172.600 | N82: 253.700 | O82: 69.300 | P82: 2.410
A84: День/неделя: Четверг-2
A85: _Завтрак
A86: 201 | B86: Запеканка из картофеля | D86: 200 | E86: 11.9 | F86: 9.47 | G86: 52.8 | H86: 278.76 | I86: 0.391 | J86: 21.84 | K86: 0.05 | L86: 0.854 | M86: 180.38 | N86: 554.4 | O86: 128.95 | P86: 6.85
A87: 376 | B87: Чай с сахаром | D87: 200 | E87: 0.07 | F87: 0.02 | G87: 15 | H87: 60 | I87: 0 | J87: 0.03 | K87: 0 | L87: 0 | M87: 11.1 | N87: 2.8 | O87: 1.4 | P87: 0.28
B88: Хлеб низкобелковый | D88: 20 | E88: 1.58 | F88: 0.2 | G88: 9.66 | H88: 46.76 | I88: 0.02 | J88: 0 | K88: 0 | L88: 0.26 | M88: 4.6 | N88: 17.4 | O88: 6.6 | P88: 0.22
A89: 14 | B89: Масло сливочное | D89: 7 | E89: 0.06 | F89: 5.08 | G89: 0.09 | H89: 46.2 | I89: 0 | J89: 0 | K89: 0.028 | L89: 0.11 | M89: 2.4 | N89: 3 | O89: 0 | P89: 0.02
B90: Фрукты в ассортименте | D90: 100 | E90: 1.5 | F90: 0.5 | G90: 21 | H90: 96 | I90: 0.04 | J90: 10 | K90: 0 | L90: 0.4 | M90: 8 | N90: 28 | O90: 42 | P90: 0.6
B93: Итого за _Завтрак | C93: 77.09 | D93: =SUM(D86:D92) -> 527 | E93: 15.110 | F93: 15.270 | G93: 98.550 | H93: 527.720 | I93: 0.451 | J93: 31.870 | K93: 0.078 | L93: 1.624 | M93: 206.480 | N93: 605.600 | O93: 178.950 | P93: 7.970
A95: День/неделя: Пятница-2
A96: _Завтрак
B97: Каша тыквеная на воде, с сахаром, с маслом | D97: 200 | E97: 5.42 | F97: 10.15 | G97: 34.62 | H97: 248 | I97: 0.288 | J97: 0.96 | K97: 0.8 | L97: 1.47 | M97: 25.6 | N97: 129.4 | O97: 46.68 | P97: 1.51
B98: Кофейный напиток с молоком безбелковым | D98: 200 | E98: 0 | F98: 0 | G98: 15 | H98: 60 | I98: 0 | J98: 0 | K98: 0 | L98: 0 | M98: 0.9 | N98: 0.1 | O98: 0.5 | P98: 0.3
B99: Хлеб низкобелковый | D99: 20 | E99: 1.1 | F99: 0.2 | G99: 9.88 | H99: 45.72 | I99: 0.02 | J99: 0 | K99: 0 | L99: 0.26 | M99: 4.6 | N99: 17.4 | O99: 6.6 | P99: 0.22
B100: Печенье безбелковое (в ассортименте) | D100: 50 | E100: 0.5 | F100: 7 | G100: 33.5 | H100: 198.5 | I100: 0 | J100: 0 | K100: 0 | L100: 0 | M100: 0 | N100: 0 | O100: 0 | P100: 0
B101: Фрукты в ассортименте | D101: 100 | E101: 1.5 | F101: 0.5 | G101: 21 | H101: 96 | I101: 0.04 | J101: 10 | K101: 0 | L101: 0.4 | M101: 8 | N101: 28 | O101: 42 | P101: 0.6
B102: Итого за _Завтрак | C102: 77.09 | D102: =SUM(D97:D101) -> 570 | E102: 8.520 | F102: 17.850 | G102: 114.000 | H102: 648.220 | I102: 0.348 | J102: 10.960 | K102: 0.800 | L102: 2.130 | M102: 39.100 | N102: 174.900 | O102: 95.780 | P102: 2.630
B104: Итого | E104: =E102+E93+E82+E72+E62+E52+E42+E32+E22+E12 -> 106.890 | F104: =F102+F93+F82+F72+F62+F52+F42+F32+F22+F12 -> 220.490 | G104: 949.030 | H104: 6050.130 | I104: 5.332 | J104: 132.630 | K104: 11.530 | L104: 13.910 | M104: 854.750 | N104: 2302.110 | O104: 999.130 | P104: 34.680
B106: Итого за завтрак | E106: =E102+E93+E82+E72+E62+E52+E42+E32+E22+E12 -> 106.89 | F106: 220.49 | G106: 949.03 | H106: 6,050.13 | I106: 5.33 | J106: 132.63 | K106: 11.53 | L106: 13.91 | M106: 854.75 | N106: 2,302.11 | O106: 999.13 | P106: 34.68
B107: Среднее значение за завтрак | E107: =E106/10 -> 10.69 | F107: =F106/10 -> 22.05 | G107: 94.90 | H107: 605.01 | I107: 0.53 | J107: 13.26 | K107: 1.15 | L107: =L106/10 -> 1.39 | M107: 85.48 | N107: 230.21 | O107: =O106/10 -> 99.91 | P107: =P106/10 -> 3.47
